bitfinex-derivatives/quotes_ETHF0:USTF0_20250214
["timestamp","ask_amount","ask_price","bid_price","bid_amount"]
[1739526034350,0.73712,2712.6,2712.5,0.5906]
[1739526036252,3.2078,2712.8,2712.5,0.5906]
[1739526036450,0.00552578,2712.9,2712.6,3.2078]
[1739526036657,0.00552578,2712.9,2712.8,0.73706]
[1739526036855,3.2078,2713.4,2712.6,5.4393192]
[1739526037158,0.73697,2713.2,2712.8,0.73705]
[1739526037456,0.73694,2713.3,2712.6,5.4393192]
[1739526037660,0.73693,2713.3,2713.0,3.2078]
[1739526037858,0.73695,2713.2,2713.1,1.1475]
[1739526038055,4.8598,2713.7,2713.1,1.1475]
[1739526038262,0.73689,2713.5,2713.1,1.1475]
[1739526038756,4.8598,2713.7,2713.1,1.1475]
[1739526039152,2.2315192,2714.0,2713.1,1.1475]
[1739526039362,3.2078,2714.4,2713.5,2.2315192]
[1739526039559,3.2078,2714.4,2713.6,4.374]
[1739526039560,4.8628,2714.4,2713.6,4.374]
[1739526039864,4.8628,2714.4,2713.7,0.00552578]
[1739526040063,3.2078,2714.1,2713.7,0.56532578]
[1739526040459,0.73677,2713.9,2713.7,0.56532578]
[1739526040663,3.2078,2714.1,2713.7,0.56532578]
[1739526040664,0.73675,2714.0,2713.7,0.56532578]
[1739526041065,3.94453,2714.1,2713.7,0.56532578]
[1739526041575,3.2078,2714.1,2713.7,0.56532578]
[1739526041763,3.94452,2714.1,2713.7,0.56532578]
[1739526042065,3.2078,2714.1,2713.7,0.56532578]
[1739526042266,3.94452,2714.1,2713.7,0.56532578]
[1739526042464,0.73674,2714.0,2713.7,0.56532578]
[1739526042963,3.2078,2714.1,2713.7,0.56532578]
[1739526042964,3.94453,2714.1,2713.7,0.56532578]
[1739526043357,3.2078,2714.1,2713.7,0.56532578]
[1739526043764,0.73674,2714.0,2713.7,0.56532578]
[1739526045064,0.73678,2713.9,2713.7,0.56532578]
[1739526045468,0.73675,2714.0,2713.7,0.56532578]
[1739526046667,3.2078,2714.1,2713.7,0.56532578]
[1739526047060,0.73674,2714.0,2713.7,0.56532578]
[1739526047554,0.73678,2713.9,2713.7,0.56532578]
[1739526048161,3.2078,2714.1,2713.7,0.56532578]
[1739526048671,3.2078,2714.1,2713.8,2.2315192]
[1739526048970,0.73667,2714.3,2713.9,3.2078]
[1739526049273,0.7367,2714.2,2713.9,3.2078]
[1739526049770,3.2078,2714.4,2713.9,3.2078]
[1739526049967,3.2078,2714.4,2713.8,2.2315192]
[1739526050167,5.04942,2714.4,2713.8,2.2315192]
[1739526050667,0.73676,2713.9,2713.8,2.2315192]
[1739526050866,5.04942,2714.4,2713.8,2.2315192]
[1739526051063,0.73676,2713.9,2713.8,2.2315192]
[1739526051472,5.04942,2714.4,2713.8,2.2315192]
[1739526051772,0.73676,2714.0,2713.8,2.2315192]
[1739526052171,3.2078,2714.4,2713.8,2.2315192]
[1739526052372,0.73674,2714.0,2713.8,2.2315192]
[1739526052565,0.73671,2714.1,2713.8,2.2315192]
[1739526052765,0.73675,2714.0,2713.8,2.2315192]
[1739526052967,3.2078,2714.4,2713.8,2.2315192]
[1739526053171,0.73672,2714.1,2713.8,2.2315192]
[1739526053571,0.73671,2714.1,2713.8,2.2315192]
[1739526053774,3.2078,2714.4,2713.8,2.2315192]
[1739526054269,0.73672,2714.1,2713.8,2.2315192]
[1739526054472,0.7367,2714.2,2713.8,2.2315192]
[1739526054967,3.2078,2714.4,2713.8,2.9682992]
[1739526055172,0.73669,2714.2,2713.8,2.9682992]
[1739526055476,3.2078,2714.4,2713.8,2.2315192]
[1739526055667,0.73672,2714.1,2713.8,2.2315192]
[1739526055862,3.2078,2714.4,2713.8,2.2315192]
[1739526056167,1.84164,2714.3,2713.7,0.56532578]
[1739526056368,1.116,2714.2,2713.7,0.56532578]
[1739526056668,0.73675,2714.0,2713.7,0.56532578]
[1739526057276,0.73668,2714.2,2713.9,3.2078]
[1739526057462,0.73668,2714.2,2714.0,0.5614]
[1739526057662,2.37467,2714.3,2714.0,0.5614]
[1739526057974,0.73671,2714.1,2714.0,0.5614]
[1739526061573,0.73678,2714.1,2714.0,0.5614]
[1739526061769,3.94458,2714.1,2714.0,0.5614]
[1739526063271,3.2078,2714.1,2713.7,0.56532578]
[1739526063477,3.94466,2713.8,2713.7,0.00552578]
[1739526063870,12.68701,2713.8,2712.9,5.4393192]
[1739526064175,0.73703,2713.2,2712.9,2.2315192]
[1739526064573,0.73705,2713.1,2712.8,0.5802]
[1739526064880,1.637,2713.3,2712.8,0.5802]
[1739526065070,0.74255578,2713.2,2712.8,0.5802]
[1739526065269,0.00552578,2713.2,2712.9,2.2315192]
[1739526065675,0.00552578,2713.2,2712.9,2.9686092]
[1739526065878,0.00552578,2713.2,2712.9,2.2315192]
[1739526066873,0.00552578,2713.2,2712.9,5.4393192]
[1739526067076,0.00552578,2713.2,2713.0,0.73706]
[1739526067674,0.00552578,2713.2,2713.1,0.73705]
[1739526067872,0.00552578,2713.2,2712.9,5.4393192]
[1739526068379,0.00552578,2713.2,2713.0,0.73705]
[1739526068580,0.00552578,2713.2,2712.9,6.1764092]
[1739526068773,0.00552578,2713.2,2713.0,0.73707]
[1739526069081,0.00552578,2713.2,2712.9,5.4393192]
[1739526069481,0.00552578,2713.2,2713.0,0.73708]
[1739526069678,0.00552578,2713.2,2713.1,0.73705]
[1739526070282,0.00552578,2713.2,2713.0,0.73706]
[1739526070582,0.00552578,2713.2,2712.9,5.4393192]
[1739526070782,0.00552578,2713.2,2713.1,0.73705]
[1739526071382,0.74255578,2713.2,2712.9,5.4393192]
[1739526071586,0.00552578,2713.2,2713.0,0.73707]
[1739526072183,0.74255578,2713.2,2713.0,0.73707]
[1739526072385,0.00552578,2713.2,2712.9,5.4393192]
[1739526072684,0.00552578,2713.2,2713.1,0.73705]
[1739526072884,0.00552578,2713.2,2713.0,0.73706]
[1739526072885,0.74255578,2713.2,2713.0,0.73706]
[1739526073380,0.74256578,2713.2,2712.9,6.1763992]
[1739526073584,0.74256578,2713.2,2713.0,0.73706]
[1739526074180,0.00552578,2713.2,2713.1,0.73705]
[1739526074786,3.7792,2713.7,2713.6,0.7369]
[1739526074787,0.73689,2713.7,2713.6,0.7369]
[1739526075090,0.73689,2713.7,2713.6,2.2315192]
[1739526077180,0.73695,2713.5,2713.3,3.3302192]
[1739526077481,3.2078,2713.8,2713.3,3.3302192]
[1739526077682,3.2078,2713.8,2713.3,4.0672092]
[1739526077987,3.2078,2713.8,2713.4,0.5376]
[1739526078185,0.73692,2713.6,2713.4,0.5376]
[1739526078384,0.7369,2713.7,2713.4,0.5376]
[1739526078581,0.73691,2713.6,2713.4,0.5376]
[1739526078983,3.2078,2713.8,2713.4,0.5376]
[1739526079291,0.73689,2713.7,2713.4,0.5376]
[1739526079485,3.2078,2713.8,2713.4,0.5376]
[1739526079688,0.73692,2713.6,2713.4,0.5376]
[1739526080087,0.73694,2713.5,2713.4,0.5376]
[1739526080984,3.2078,2713.8,2713.3,2.2315192]
[1739526081390,0.73694,2713.5,2713.4,0.5822]
[1739526081882,3.2078,2713.8,2713.4,0.5822]
[1739526082083,0.73691,2713.6,2713.5,0.5854]
[1739526083585,0.73691,2713.6,2713.5,1.1584]
[1739526084187,3.2078,2713.8,2713.5,1.1584]
[1739526084393,0.73691,2713.6,2713.5,1.1584]
[1739526086488,3.2078,2713.8,2713.3,2.2315192]
[1739526086687,0.73697,2713.4,2713.3,3.9344192]
[1739526088494,0.73697,2713.4,2713.0,0.73707]
[1739526088495,0.73705,2713.1,2713.0,2.2315192]
[1739526090899,3.2078,2713.5,2713.0,2.2315192]
[1739526091297,5.57975,2713.5,2713.3,2.2315192]
[1739526091497,4.8428,2713.5,2713.3,2.2315192]
[1739526091698,4.8428,2713.5,2713.0,2.2315192]
[1739526091899,0.73706,2713.1,2713.0,2.2315192]
[1739526092593,0.73705,2713.1,2713.0,2.2315192]
[1739526094001,4.8428,2713.5,2713.0,2.2315192]
[1739526094415,0.73702,2713.3,2713.0,2.2315192]
[1739526094614,0.73704,2713.2,2713.0,2.2315192]
[1739526094911,0.73705,2713.1,2713.0,2.2315192]
[1739526095113,3.2078,2713.5,2713.0,2.2315192]
[1739526095312,0.73704,2713.2,2713.0,2.2315192]
[1739526095511,0.73705,2713.1,2713.0,2.2315192]
[1739526097213,4.3467,2713.2,2713.0,2.2315192]
[1739526097815,0.73705,2713.1,2713.0,2.2315192]
[1739526098114,4.3467,2713.2,2713.0,2.2315192]
[1739526098416,0.73705,2713.1,2713.0,2.2315192]
[1739526099015,3.2078,2713.2,2713.0,2.2315192]
[1739526099418,0.73705,2713.1,2713.0,2.2315192]
[1739526100410,3.94483,2713.2,2713.0,2.2315192]
[1739526100713,3.2078,2713.2,2713.0,2.2315192]
[1739526100914,0.73705,2713.1,2713.0,2.2315192]
[1739526101217,3.2078,2713.2,2713.0,2.2315192]
[1739526101712,0.73705,2713.1,2713.0,2.2315192]
[1739526101918,3.94485,2713.2,2713.0,2.2315192]
[1739526102218,0.00268566,2713.1,2713.0,2.2315192]
[1739526103014,0.00268566,2713.1,2713.0,2.9685992]
[1739526104814,0.73973566,2713.1,2713.0,2.9685992]
[1739526105121,0.00268566,2713.1,2713.0,2.9685992]
[1739526105913,6.1238,2714.1,2713.0,2.2315192]
[1739526106113,3.7729,2714.1,2713.6,0.73691]
[1739526106314,3.2078,2714.1,2713.8,2.2315192]
[1739526106512,0.73683,2713.9,2713.8,2.9683692]
[1739526107111,3.2078,2714.4,2713.8,2.2315192]
[1739526107318,0.73673,2714.3,2714.2,2.2315192]
[1739526108924,3.2078,2714.4,2714.2,2.9682592]
[1739526109220,3.2078,2714.4,2714.3,1.1338]
[1739526109621,0.73668,2714.5,2714.3,1.1338]
[1739526109818,0.7367,2714.4,2714.3,1.1338]
[1739526111416,3.7922,2714.7,2714.3,0.5822]
[1739526111619,0.73673,2714.3,2714.2,2.2315192]
[1739526113119,0.73676,2714.2,2714.1,0.00552578]
[1739526113924,1.31934,2714.3,2714.1,0.00552578]
[1739526114714,3.2078,2714.4,2714.1,0.00552578]
[1739526114920,0.73676,2714.2,2714.1,0.00552578]
[1739526116023,0.5707,2714.3,2714.1,0.00552578]
[1739526116325,3.2078,2714.4,2714.1,0.00552578]
[1739526116528,0.73675,2714.3,2714.1,0.00552578]
[1739526116921,3.2078,2714.4,2714.1,0.00552578]
[1739526117425,0.73673,2714.3,2714.1,0.00552578]
[1739526117625,3.2078,2714.4,2714.1,0.00552578]
[1739526118122,0.73676,2714.2,2714.1,0.00552578]
[1739526118324,3.2078,2714.4,2714.1,0.00552578]
[1739526118921,0.73673,2714.3,2714.1,0.00552578]
[1739526120025,3.2078,2714.4,2714.1,0.00552578]
[1739526120529,3.2078,2714.4,2714.2,2.9682692]
[1739526120824,3.2078,2714.4,2714.3,0.567]
[1739526121023,3.94451,2714.4,2714.3,0.567]
[1739526121627,3.2078,2714.4,2714.1,0.00552578]
[1739526121830,0.73675,2714.3,2714.1,0.00552578]
[1739526122025,3.2078,2714.4,2714.1,0.00552578]
[1739526122231,0.73676,2714.2,2714.1,0.00552578]
[1739526122624,1.27826,2714.2,2714.1,0.00552578]
[1739526125126,0.5415,2714.2,2714.1,0.00552578]
[1739526125533,1.27826,2714.2,2714.1,0.00552578]
[1739526129132,9.4575,2714.2,2713.0,2.2315192]
[1739526129329,0.73704,2713.2,2713.0,2.2315192]
[1739526129530,3.2078,2713.4,2713.0,2.2315192]
[1739526129531,0.737,2713.3,2713.0,2.2315192]
[1739526129831,3.2078,2713.4,2713.0,2.2315192]
[1739526130236,3.2078,2713.4,2713.3,2.2315192]
[1739526130633,0.00552578,2713.5,2713.4,0.73698]
[1739526130832,0.00552578,2713.5,2713.4,1.89178]
[1739526131138,0.00552578,2713.5,2713.4,1.1548]
[1739526131636,0.00552578,2713.5,2713.4,1.89178]
[1739526131938,0.00552578,2713.5,2713.4,1.1548]
[1739526132439,0.00552578,2713.5,2713.4,1.89178]
[1739526132836,1.6717,2714.1,2713.4,1.89178]
[1739526132837,3.2078,2714.5,2713.4,5.09958]
[1739526133035,3.2078,2714.5,2714.2,2.2315192]
[1739526133336,0.73671,2714.4,2714.3,1.1653]
[1739526134234,2.41826,2714.8,2714.3,1.1653]
[1739526134235,3.2078,2714.8,2714.3,1.1653]
[1739526134434,0.73666,2714.6,2714.3,1.1653]
[1739526134629,0.73666,2714.6,2714.3,1.17082578]
[1739526134831,5.3763,2714.8,2714.3,1.17082578]
[1739526134832,0.73669,2714.5,2714.3,1.17082578]
[1739526135039,5.3763,2714.8,2714.3,1.17082578]
[1739526135240,0.73671,2714.4,2714.3,1.17082578]
[1739526135537,0.73671,2714.4,2714.3,0.58452578]
[1739526136339,1.28721,2714.4,2714.3,0.58452578]
[1739526137934,1.28721,2714.4,2714.3,0.00552578]
[1739526138340,0.73682,2714.0,2713.7,1.6759]
[1739526138546,0.73685,2713.9,2713.7,1.6759]
[1739526138842,0.73687,2713.8,2713.7,1.6759]
[1739526139638,3.2078,2713.9,2713.7,1.6759]
[1739526139946,3.94466,2713.9,2713.7,1.6759]
[1739526140241,3.2078,2713.9,2713.7,1.6759]
[1739526140636,0.73687,2713.8,2713.7,1.6759]
[1739526142134,0.73687,2713.8,2713.7,1.1056]
[1739526142335,3.2078,2713.9,2713.5,0.00552578]
[1739526142536,4.00506578,2714.0,2713.5,0.00552578]
[1739526142537,3.94472,2713.6,2713.5,0.00552578]
[1739526145045,5.55672,2713.6,2713.5,0.00552578]
[1739526162548,5.55072,2713.6,2713.5,0.00552578]
[1739526168851,0.00552578,2714.0,2713.5,9.21332578]
[1739526169057,3.2078,2714.5,2713.5,9.21332578]
[1739526169058,3.2078,2714.8,2713.9,5.4393192]
[1739526169257,3.2078,2714.8,2714.3,2.2315192]
[1739526169556,3.2078,2714.8,2714.4,0.5461]
[1739526169955,1.624,2714.7,2714.4,0.5461]
[1739526170846,3.2078,2714.8,2714.4,0.5461]
[1739526171052,1.625,2715.1,2714.6,2.2315192]
[1739526171449,4.8328,2715.1,2714.6,2.2315192]
[1739526172047,4.8328,2715.1,2714.7,1.0895]
[1739526175067,4.8328,2715.1,2714.7,1.82611]
[1739526175475,3.2078,2715.1,2714.7,1.0895]
[1739526176668,3.94432,2715.1,2714.7,1.0895]
[1739526177168,3.2078,2715.1,2714.7,1.0895]
[1739526177373,3.2078,2715.1,2714.9,2.2315192]
[1739526177569,3.2078,2715.1,2715.0,0.5507]
[1739526177777,3.94432,2715.1,2715.0,0.5507]
[1739526178273,3.2078,2715.1,2715.0,0.5507]
[1739526179177,3.2078,2715.4,2715.0,0.5507]
[1739526179377,5.56424,2715.4,2715.0,0.5507]
[1739526180164,3.94424,2715.4,2715.0,1.28723]
[1739526180369,3.94424,2715.4,2715.0,0.5507]
[1739526180971,0.73647,2715.3,2715.0,0.5507]
[1739526181475,3.2078,2715.4,2715.2,2.2315192]
[1739526181678,0.73646,2715.3,2715.2,2.2315192]
[1739526181877,0.73039734,2715.3,2715.2,2.2315192]
[1739526191085,0.73652,2715.1,2715.0,0.5507]
[1739526191378,3.94432,2715.1,2715.0,0.5507]
[1739526193580,3.2078,2715.1,2715.0,0.5507]
[1739526193776,0.73652,2715.1,2715.0,0.5507]
[1739526194476,0.543,2715.2,2715.0,0.5507]
[1739526194683,0.73652,2715.1,2715.0,0.5507]
[1739526198071,0.73654,2715.0,2714.9,2.23704498]
[1739526201479,4.53954,2715.0,2714.9,2.23704498]
[1739526202187,3.94434,2715.0,2714.9,2.23704498]
[1739526202386,0.543,2715.2,2714.9,2.23704498]
[1739526202689,1.2795,2715.2,2715.0,0.5878]
[1739526203486,1.2795,2715.2,2715.0,1.129]
[1739526204687,0.543,2715.2,2715.0,1.129]
[1739526204884,0.73652,2715.1,2715.0,1.129]
[1739526205086,0.73652,2715.1,2715.0,0.5878]
[1739526209486,4.4873,2715.2,2715.0,0.5878]
[1739526209687,0.73652,2715.1,2715.0,0.5878]
[1739526210889,0.73654,2715.0,2714.9,2.23704498]
[1739526213695,0.73653,2715.1,2714.9,2.23704498]
[1739526213895,4.3276,2715.2,2714.9,2.23704498]
[1739526214096,0.73652,2715.1,2714.9,2.23704498]
[1739526214396,4.3276,2715.2,2714.9,2.23704498]
[1739526214587,0.73653,2715.1,2714.9,2.23704498]
[1739526215294,0.73652,2715.1,2714.9,2.23704498]
[1739526216688,0.73654,2715.0,2714.9,2.23704498]
[1739526217092,0.73654,2715.1,2714.9,2.23704498]
[1739526217486,0.73654,2715.0,2714.9,2.23704498]
[1739526218087,0.73653,2715.1,2714.9,2.23704498]
[1739526218896,3.7508,2715.2,2714.9,2.23704498]
[1739526219096,3.7508,2715.2,2715.0,0.5458]
[1739526219594,4.48729,2715.2,2715.1,0.5478]
[1739526219987,3.2078,2715.2,2715.1,0.5478]
[1739526221696,3.2078,2715.2,2715.1,1.28432]
[1739526222093,3.2078,2715.2,2715.1,0.5478]
[1739526222495,3.94429,2715.2,2715.1,0.5478]
[1739526223397,0.73654,2715.0,2714.9,2.23704498]
[1739526223795,0.73652,2715.1,2714.9,2.23704498]
[1739526223994,0.73652,2715.1,2715.0,0.5708]
[1739526224299,0.5513,2715.1,2714.9,2.23704498]
[1739526224497,0.73654,2715.0,2714.9,2.23704498]
[1739526225495,0.5513,2715.1,2714.9,2.23704498]
[1739526225697,0.73654,2715.0,2714.9,2.23704498]
[1739526226606,0.5513,2715.1,2714.9,2.23704498]
[1739526227307,0.5513,2715.1,2714.9,2.97360498]
[1739526227505,3.2078,2715.2,2714.9,2.23704498]
[1739526227799,3.2078,2715.2,2715.0,1.31124]
[1739526228001,0.73652,2715.1,2715.0,0.5747]
[1739526228595,3.9443,2715.2,2715.0,0.5747]
[1739526229705,3.94431,2715.2,2715.0,0.5747]
[1739526230007,3.2078,2715.2,2715.0,0.5747]
[1739526230204,3.9443,2715.2,2715.0,0.5747]
[1739526230509,3.94431,2715.2,2715.0,0.5747]
[1739526231008,3.2078,2715.2,2715.0,0.5747]
[1739526231301,0.73652,2715.1,2715.0,0.5747]
[1739526231507,1.27862,2715.1,2715.0,0.5747]
[1739526232406,0.5421,2715.1,2715.0,0.5747]
[1739526232803,1.27862,2715.1,2715.0,0.5747]
[1739526233304,0.5421,2715.1,2715.0,0.5747]
[1739526234006,1.27862,2715.1,2715.0,0.5747]
[1739526234402,0.5421,2715.1,2715.0,0.5747]
[1739526234805,3.2078,2715.2,2715.0,0.5747]
[1739526235003,3.94431,2715.2,2715.0,0.5747]
[1739526235214,3.2078,2715.2,2715.0,0.5747]
[1739526235507,3.9443,2715.2,2715.0,0.5747]
[1739526235703,3.2078,2715.2,2715.0,0.5747]
[1739526235913,0.73652,2715.1,2715.0,0.5747]
[1739526236301,3.2078,2715.2,2715.0,0.5747]
[1739526236505,0.73652,2715.1,2715.0,0.5747]
[1739526237107,3.2078,2715.2,2715.0,0.5747]
[1739526237612,3.94429,2715.2,2715.0,0.5747]
[1739526237913,0.73652,2715.1,2715.0,0.5747]
[1739526240712,3.9443,2715.2,2715.0,0.5747]
[1739526241210,3.94429,2715.2,2715.0,0.5747]
[1739526241602,3.2078,2715.2,2715.0,0.5747]
[1739526241807,0.73652,2715.1,2715.0,0.5747]
[1739526242607,3.2078,2715.2,2715.0,0.5747]
[1739526242911,3.94431,2715.2,2715.0,0.5747]
[1739526243713,1.1048,2715.4,2715.0,0.5747]
[1739526243909,1.84124,2715.4,2715.0,0.5747]
[1739526244216,0.73647,2715.3,2715.0,1.31123]
[1739526244713,1.1048,2715.4,2715.0,1.31123]
[1739526244908,0.73649,2715.2,2715.0,1.31123]
[1739526245614,1.1048,2715.4,2715.0,0.5747]
[1739526245813,0.73646,2715.3,2715.0,1.31123]
[1739526246016,0.73646,2715.3,2715.2,2.2315192]
[1739526246409,1.84125,2715.4,2715.2,2.2315192]
[1739526246618,0.73643,2715.4,2715.3,0.5563]
[1739526246808,1.30273,2715.4,2715.3,0.5563]
[1739526247213,0.5663,2715.4,2715.3,0.5563]
[1739526247510,1.30273,2715.4,2715.3,0.5563]
[1739526249419,0.5663,2715.4,2715.3,0.5563]
[1739526249717,1.30273,2715.4,2715.3,0.5563]
[1739526250111,0.5663,2715.4,2715.3,0.5563]
[1739526251210,0.5663,2715.4,2715.3,1.29276]
[1739526251718,0.5663,2715.4,2715.3,1.58201572]
[1739526251919,1.30273,2715.4,2715.3,1.58201572]
[1739526252511,1.30273,2715.4,2715.3,3.34419144]
[1739526252512,0.5663,2715.4,2715.3,3.34419144]
[1739526252709,1.30273,2715.4,2715.3,2.60773144]
[1739526253111,1.30273,2715.4,2715.3,3.34419144]
[1739526253309,1.30273,2715.4,2715.3,2.60773144]
[1739526253514,0.5663,2715.4,2715.3,3.34419144]
[1739526254622,1.30273,2715.4,2715.3,3.34419144]
[1739526255219,0.5663,2715.4,2715.3,3.34419144]
[1739526255420,0.5786,2715.7,2715.3,2.60773144]
[1739526255617,1.89755,2715.7,2715.6,1.02571572]
[1739526257321,1.586,2716.1,2715.6,1.02571572]
[1739526257617,0.73633,2715.8,2715.7,0.5882]
[1739526258823,0.73633,2715.8,2715.7,1.61391572]
[1739526259220,3.7904,2715.9,2715.7,1.61391572]
[1739526259523,0.73633,2715.8,2715.7,2.15021572]
[1739526260025,0.73633,2715.8,2715.7,1.02571572]
[1739526260422,1.31173,2715.8,2715.7,1.02571572]
[1739526261622,1.31173,2715.8,2715.5,5.42994822]
[1739526261825,0.564,2715.7,2715.5,5.42994822]
[1739526262212,1.30036,2715.7,2715.5,5.42994822]
[1739526262925,1.30037,2715.7,2715.5,5.42994822]
[1739526263126,0.73638,2715.6,2715.5,5.42994822]
[1739526263322,0.564,2715.7,2715.5,5.42994822]
[1739526263527,1.30038,2715.7,2715.5,5.42994822]
[1739526263925,1.30036,2715.7,2715.5,5.42994822]
[1739526264228,1.30037,2715.7,2715.5,5.42994822]
[1739526265025,0.73638,2715.6,2715.5,5.42994822]
[1739526265231,0.564,2715.7,2715.5,5.42994822]
[1739526266027,0.564,2715.7,2715.5,2.22214822]
[1739526266028,0.73638,2715.6,2715.5,2.22214822]
[1739526267723,0.564,2715.7,2715.5,2.22214822]
[1739526267921,0.73638,2715.6,2715.5,2.22214822]
[1739526268321,1.30037,2715.7,2715.5,2.22214822]
[1739526268732,0.564,2715.7,2715.5,2.22214822]
[1739526269125,0.73638,2715.6,2715.5,2.22214822]
[1739526272530,0.564,2715.7,2715.5,2.22214822]
[1739526272725,0.73638,2715.6,2715.5,2.22214822]
[1739526274034,0.564,2715.7,2715.5,2.22214822]
[1739526274231,0.73638,2715.6,2715.5,2.22214822]
[1739526275334,1.30037,2715.7,2715.5,2.22214822]
[1739526275538,0.564,2715.7,2715.5,2.22214822]
[1739526275837,0.73638,2715.6,2715.5,2.22214822]
[1739526276032,0.564,2715.7,2715.5,2.22214822]
[1739526276237,1.30036,2715.7,2715.5,2.22214822]
[1739526276442,0.73638,2715.6,2715.5,2.22214822]
[1739526277240,0.564,2715.7,2715.5,2.22214822]
[1739526277741,0.73638,2715.6,2715.5,2.22214822]
[1739526281646,0.564,2715.7,2715.5,1.02563409]
[1739526281853,0.73643,2715.4,2715.3,1.02563409]
[1739526282354,0.73643,2715.4,2715.0,1.1287]
[1739526282355,0.73649,2715.2,2715.1,1.02563409]
[1739526282746,2.31949,2715.2,2715.1,1.02563409]
[1739526284156,0.73654,2715.0,2714.9,0.00552578]
[1739526284346,0.73665,2714.6,2714.5,1.02563409]
[1739526285145,1.87495,2714.6,2714.5,1.02563409]
[1739526285743,1.1383,2714.6,2714.3,2.2296299]
[1739526285947,0.73669,2714.5,2714.3,2.2296299]
[1739526286144,1.1383,2714.6,2714.3,2.2296299]
[1739526286344,0.73669,2714.5,2714.3,2.2296299]
[1739526286550,1.1383,2714.6,2714.3,2.2296299]
[1739526286850,0.73669,2714.5,2714.3,2.2296299]
[1739526287448,1.1383,2714.6,2714.3,2.2296299]
[1739526287650,0.73668,2714.5,2714.3,2.2296299]
[1739526287948,1.1383,2714.6,2714.3,2.2296299]
[1739526288351,1.87496,2714.6,2714.3,2.2296299]
[1739526288941,0.73668,2714.5,2714.3,2.2296299]
[1739526289343,1.1383,2714.6,2714.3,2.2296299]
[1739526290149,1.1383,2714.6,2714.3,2.7784299]
[1739526290350,1.87497,2714.6,2714.3,2.7784299]
[1739526290751,1.87496,2714.6,2714.3,2.7784299]
[1739526291648,1.1383,2714.6,2714.3,2.7784299]
[1739526291954,1.32316,2714.6,2714.3,3.5151499]
[1739526292761,0.73671,2714.4,2714.3,0.55432578]
[1739526293152,0.73671,2714.4,2714.3,0.00552578]
[1739526297162,0.5538,2714.5,2714.3,0.00552578]
[1739526297662,0.73671,2714.4,2714.3,0.00552578]
[1739526298257,0.5538,2714.5,2714.3,0.00552578]
[1739526298462,1.29049,2714.5,2714.3,0.00552578]
[1739526299062,0.5538,2714.5,2714.3,0.00552578]
[1739526299260,1.2905,2714.5,2714.3,0.00552578]
[1739526299462,0.73671,2714.4,2714.3,0.00552578]
[1739526300663,0.5538,2714.5,2714.3,0.00552578]
[1739526300863,1.29049,2714.5,2714.3,0.00552578]
[1739526301064,0.73671,2714.4,2714.3,0.00552578]
[1739526302058,1.29048,2714.5,2714.3,0.00552578]
[1739526302369,0.73671,2714.4,2714.3,0.00552578]
[1739526302769,0.5538,2714.5,2714.3,0.00552578]
[1739526303068,0.73671,2714.4,2714.3,0.00552578]
[1739526304073,0.5538,2714.5,2714.3,0.00552578]
[1739526304370,0.73671,2714.4,2714.3,0.00552578]
[1739526304566,0.5538,2714.5,2714.3,0.00552578]
[1739526304767,0.73671,2714.4,2714.3,0.00552578]
[1739526305469,0.5538,2714.5,2714.3,0.00552578]
[1739526305671,0.73671,2714.4,2714.3,0.00552578]
[1739526306168,0.5538,2714.5,2714.3,0.00552578]
[1739526306369,1.29049,2714.5,2714.3,0.00552578]
[1739526306572,0.73671,2714.4,2714.3,0.00552578]
[1739526306967,1.2905,2714.5,2714.3,0.00552578]
[1739526307167,0.5538,2714.5,2714.3,0.00552578]
[1739526307573,0.73671,2714.4,2714.3,0.00552578]
[1739526307873,0.73671,2714.4,2714.3,1.03211978]
[1739526309767,0.5538,2714.5,2714.3,1.03211978]
[1739526310570,0.5538,2714.5,2714.3,1.76882978]
[1739526310968,0.5538,2714.5,2714.3,1.03211978]
[1739526311168,5.3803,2714.6,2714.3,1.03211978]
[1739526311369,6.11696,2714.6,2714.5,1.026594]
[1739526312067,0.5865,2714.6,2714.5,2.151494]
[1739526312267,0.00552578,2714.8,2714.7,0.73662]
[1739526312473,0.00552578,2714.8,2714.7,1.763214]
[1739526313676,0.00552578,2714.8,2714.7,2.95956094]
[1739526315375,0.5472,2715.4,2714.7,2.22294094]
[1739526315567,0.5472,2715.4,2714.9,3.2078]
[1739526315877,3.2078,2715.6,2715.1,2.22294094]
[1739526316072,0.73644,2715.4,2715.2,1.29627]
[1739526316378,0.73644,2715.4,2715.2,1.29629]
[1739526316784,0.73644,2715.4,2715.2,0.5598]
[1739526316973,3.2078,2715.6,2715.2,1.29628]
[1739526317276,0.73642,2715.5,2715.2,1.29628]
[1739526317676,0.73644,2715.4,2715.2,1.29628]
[1739526317878,0.73642,2715.5,2715.2,0.5598]
[1739526318075,0.73642,2715.5,2715.2,1.29627]
[1739526318376,3.2078,2715.6,2715.2,1.29627]
[1739526318377,0.73645,2715.4,2715.2,0.5598]
[1739526318577,0.73646,2715.3,2715.2,0.5598]
[1739526320880,3.7976,2715.6,2715.1,2.22294094]
[1739526321180,0.73651,2715.1,2715.0,1.1377]
[1739526321473,1.2806,2715.2,2715.0,1.1377]
[1739526321676,0.5593,2715.1,2715.0,1.1377]
[1739526322076,1.29581,2715.1,2715.0,1.1377]
[1739526322277,0.73654,2715.0,2714.9,0.5599]
[1739526322474,0.73657,2714.9,2714.8,2.22294094]
[1739526322670,3.2078,2715.0,2714.5,2.22294094]
[1739526322887,0.73665,2714.6,2714.5,2.22294094]
[1739526323178,5.3623,2715.0,2714.5,2.22294094]
[1739526323377,0.73665,2714.6,2714.5,2.22294094]
[1739526323584,0.73665,2714.7,2714.5,2.22294094]
[1739526323777,0.5509,2714.6,2714.5,2.22294094]
[1739526324080,1.28755,2714.6,2714.5,2.22294094]
[1739526324382,0.5509,2714.6,2714.5,2.22294094]
[1739526324982,1.28755,2714.6,2714.5,2.22294094]
[1739526325279,1.0986,2714.6,2714.5,2.22294094]
[1739526325984,1.83525,2714.6,2714.5,2.22294094]